[Event "FRA-ch Youth U12W 2019"]
[Site "Hyeres"]
[Date "2019.04.19"]
[Round "7.1"]
[White "Micheli, Elora"]
[Black "Schippke, Manon"]
[Result "1-0"]
[ECO "B70"]
[WhiteElo "1359"]
[BlackElo "1646"]
[Annotator "NA"]
[PlyCount "113"]
[EventDate "2019.04.14"]
[EventType "swiss"]
[EventCountry "FRA"]
[SourceTitle "playchess.com"]
[Source "ChessBase"]
[SourceQuality "1"]
[TimeControl "5400+30"]

1. e4 {[%emt 0:00:00]} c5 {[%emt 0:00:06]} 2. Nf3 {[%emt 0:01:17]} d6 {[%emt 0:01:09]} 3. d4 {[%emt 0:02:22]} cxd4 {[%emt 0:00:53]} 4. Nxd4 {[%emt 0:01:46]} Nf6 {[%emt 0:01:15]} 5. Nc3 {[%emt 0:01:25]} Nc6 {[%emt 0:01:01]} 6. g3 {[%emt 0:00:58]} g6 {[%emt 0:15:29]} 7. Bg2 {[%emt 0:02:24]} Bd7 {[%emt 0:00:35]} 8. h3 {[%emt 0:01:56]} Bg7 {[%emt 0:02:15]} 9. Nde2 {[%emt 0:01:45]} O-O {[%emt 0:08:04]} 10. O-O {[%emt 0:02:02]} Rc8 {[%emt 0:02:21]} 11. Be3 {[%emt 0:02:33]} Qa5 {[%emt 0:12:13]} 12. Nd5 {[%emt 0:03:59]} Nxd5 {[%emt 0:04:49]} 13. exd5 {[%emt 0:01:11]} Ne5 {[%emt 0:04:07]} 14. Bd4 {[%emt 0:04:49]} Bf5 {[%emt 0:06:33]} 15. c3 {[%emt 0:04:05]} Qb5 {[%emt 0:02:09]} 16. b3 {[%emt 0:02:31]} Nd7 {[%emt 0:08:52]} 17. c4 {[%emt 0:04:24]} Qa5 {[%emt 0:00:25]} 18. Bxg7 {[%emt 0:00:55]} Kxg7 {[%emt 0:00:10]} 19. g4 {[%emt 0:00:12]} Bxg4 {[%emt 0:04:35]} 20. hxg4 {[%emt 0:00:38]} Ne5 {[%emt 0:00:25]} 21. Qd4 {[%emt 0:00:54]} Kg8 {[%emt 0:00:32]} 22. g5 {[%emt 0:01:22]} b5 {[%emt 0:00:26]} 23. cxb5 {[%emt 0:01:27]} Qxb5 {[%emt 0:00:08]} 24. Nf4 {[%emt 0:02:04]} Rc5 {[%emt 0:01:33]} 25. b4 {[%emt 0:01:13]} Rc4 {[%emt 0:00:15]} 26. Qe3 {[%emt 0:03:43]} Qxb4 {[%emt 0:01:55]} 27. Nd3 {[%emt 0:00:59]} Nxd3 {[%emt 0:02:30]} 28. Qxd3 {[%emt 0:00:51]} Rg4 {[%emt 0:01:06]} 29. Qe3 {[%emt 0:01:22]} Qc4 {[%emt 0:00:33]} 30. f4 {[%emt 0:02:28]} Qxd5 {[%emt 0:00:39]} 31. Rf2 {[%emt 0:01:29]} e5 {[%emt 0:03:22]} 32. fxe5 {[%emt 0:13:46]} Qxe5 {[%emt 0:00:27]} 33. Qxe5 {[%emt 0:01:21]} dxe5 {[%emt 0:00:07]} 34. Rb1 {[%emt 0:00:36]} Rxg5 {[%emt 0:00:42]} 35. Rb7 {[%emt 0:00:35]} a5 {[%emt 0:00:53]} 36. Kf1 {[%emt 0:00:22]} Rc8 {[%emt 0:04:36]} 37. Rd2 {[%emt 0:04:27]} h5 {[%emt 0:02:53]} 38. Bd5 {[%emt 0:01:03]} Rf5+ {[%emt 0:00:29]} 39. Rf2 {[%emt 0:00:40]} Rxf2+ {[%emt 0:01:48]} 40. Kxf2 {[%emt 0:00:06]} Rf8 {[%emt 0:00:21]} 41. Re7 {[%emt 0:00:29]} h4 {[%emt 0:00:48]} 42. Rxe5 {[%emt 0:00:16]} Rd8 {[%emt 0:01:30]} 43. Bb3 {[%emt 0:01:22]} a4 {[%emt 0:00:25]} 44. Bxa4 {[%emt 0:00:40]} Rd2+ {[%emt 0:00:07]} 45. Re2 {[%emt 0:00:24]} Rd4 {[%emt 0:00:21]} 46. Bb3 {[%emt 0:00:45]} g5 {[%emt 0:00:42]} 47. Re5 {[%emt 0:01:49]} Rf4+ {[%emt 0:01:45]} 48. Kg2 {[%emt 0:00:29]} g4 {[%emt 0:00:55]} 49. Rg5+ {[%emt 0:01:13]} Kf8 {[%emt 0:00:08]} 50. Rh5 {[%emt 0:00:21]} g3 {[%emt 0:02:38]} 51. Kh3 {[%emt 0:01:53]} Rg4 {[%emt 0:01:07]} 52. Bd5 {[%emt 0:01:13]} Ra4 {[%emt 0:01:04]} 53. Rf5 {[%emt 0:04:05]} Ke7 {[%emt 0:00:55]} 54. Bb3 {[%emt 0:01:34]} Rg4 {[%emt 0:01:05]} 55. Kxg4 {[%emt 0:00:20]} g2 {[%emt 0:00:13]} 56. Re5+ {[%emt 0:00:04]} Kd6 {[%emt 0:00:13]} 57. Re1 {[%emt 0:00:09]} 1-0

[Event "FRA-ch Youth U12W 2019"]
[Site "Hyeres"]
[Date "2019.04.19"]
[Round "7.2"]
[White "Schebacher, Solene"]
[Black "Gagua, Nani"]
[Result "0-1"]
[ECO "B50"]
[WhiteElo "1555"]
[BlackElo "1458"]
[Annotator "NA"]
[PlyCount "86"]
[EventDate "2019.04.14"]
[EventType "swiss"]
[EventCountry "FRA"]
[SourceTitle "playchess.com"]
[Source "ChessBase"]
[SourceQuality "1"]
[TimeControl "5400+30"]

1. e4 {[%emt 0:00:00]} c5 {[%emt 0:00:00]} 2. Nf3 {[%emt 0:00:00]} d6 {[%emt 0:00:00]} 3. h3 {[%emt 0:00:36]} Nf6 {[%emt 0:00:06]} 4. c3 {[%emt 0:00:51]} Nc6 {[%emt 0:00:30]} 5. Bd3 {[%emt 0:01:22]} g6 {[%emt 0:00:17]} 6. Bc2 {[%emt 0:01:07]} Bg7 {[%emt 0:00:37]} 7. d4 {[%emt 0:01:44]} cxd4 {[%emt 0:01:08]} 8. cxd4 {[%emt 0:01:40]} O-O {[%emt 0:00:51]} 9. O-O {[%emt 0:00:51]} Bd7 {[%emt 0:13:12]} 10. Nc3 {[%emt 0:04:27]} Rc8 {[%emt 0:00:34]} 11. Bf4 {[%emt 0:08:48]} Qb6 {[%emt 0:05:52]} 12. Na4 {[%emt 0:09:06]} Qd8 {[%emt 0:03:30]} 13. Re1 {[%emt 0:06:04]} Nb4 {[%emt 0:06:22]} 14. Bb3 {[%emt 0:03:46]} Bb5 {[%emt 0:07:25]} 15. Nc3 {[%emt 0:06:07]} Ba6 {[%emt 0:10:18]} 16. Bc2 {[%emt 0:05:55]} Qc7 {[%emt 0:10:59]} 17. a3 {[%emt 0:46:06]} Nxc2 {[%emt 0:00:51]} 18. Qxc2 {[%emt 0:00:00]} Qc4 {[%emt 0:01:01]} 19. Rac1 {[%emt 0:00:00]} d5 {[%emt 0:14:23]} 20. Qd2 {[%emt 0:00:00]} dxe4 {[%emt 0:02:06]} 21. Nxe4 {[%emt 0:00:00]} Nxe4 {[%emt 0:01:13]} 22. Rxe4 {[%emt 0:00:00]} Qxc1+ {[%emt 0:01:27]} 23. Qxc1 {[%emt 0:00:00]} Rxc1+ {[%emt 0:00:02]} 24. Bxc1 {[%emt 0:00:00]} Rc8 {[%emt 0:00:04]} 25. Bf4 {[%emt 0:00:00]} e6 {[%emt 0:01:10]} 26. Re1 {[%emt 0:00:00]} Kf8 {[%emt 0:05:14]} 27. Bd6+ {[%emt 0:00:00]} Ke8 {[%emt 0:00:12]} 28. Bb4 {[%emt 0:00:00]} Rd8 {[%emt 0:01:15]} 29. Bc3 {[%emt 0:00:00]} Bc4 {[%emt 0:00:37]} 30. Rc1 {[%emt 0:00:00]} Bd5 {[%emt 0:01:02]} 31. Rd1 {[%emt 0:00:00]} Bxf3 {[%emt 0:00:33]} 32. gxf3 {[%emt 0:00:00]} Rd5 {[%emt 0:00:04]} 33. Kf1 {[%emt 0:00:00]} Kd7 {[%emt 0:00:52]} 34. Ke2 {[%emt 0:00:00]} Rh5 {[%emt 0:00:28]} 35. Rh1 {[%emt 0:00:00]} Kd6 {[%emt 0:01:37]} 36. Ke3 {[%emt 0:00:00]} Kd5 {[%emt 0:01:01]} 37. b3 {[%emt 0:00:00]} Rh4 {[%emt 0:00:19]} 38. f4 {[%emt 0:00:00]} Bh6 {[%emt 0:00:16]} 39. Rg1 {[%emt 0:00:00]} Rxf4 {[%emt 0:00:36]} 40. Ke2 {[%emt 0:00:34]} Bg7 {[%emt 0:00:29]} 41. Rg5+ {[%emt 0:01:27]} f5 {[%emt 0:01:57]} 42. Ke3 {[%emt 0:00:54]} Rh4 {[%emt 0:00:45]} 43. Rg3 {[%emt 0:00:49]} f4+ {[%emt 0:00:11]} 0-1

[Event "FRA-ch Youth U12W 2019"]
[Site "Hyeres"]
[Date "2019.04.19"]
[Round "7.3"]
[White "Berezovsky, Fiorina"]
[Black "Weigelt, Elea"]
[Result "1-0"]
[ECO "B01"]
[WhiteElo "1604"]
[BlackElo "1378"]
[Annotator "NA"]
[PlyCount "77"]
[EventDate "2019.04.14"]
[EventType "swiss"]
[EventCountry "FRA"]
[SourceTitle "playchess.com"]
[Source "ChessBase"]
[SourceQuality "1"]
[TimeControl "5400+30"]

1. e4 {[%emt 0:00:00]} d5 {[%emt 0:00:21]} 2. exd5 {[%emt 0:00:09]} Qxd5 {[%emt 0:00:44]} 3. Nc3 {[%emt 0:00:40]} Qa5 {[%emt 0:02:07]} 4. Nf3 {[%emt 0:01:33]} Nf6 {[%emt 0:01:25]} 5. Bc4 {[%emt 0:02:03]} Bg4 {[%emt 0:03:44]} 6. d4 {[%emt 0:01:38]} Nc6 {[%emt 0:01:52]} 7. Be3 {[%emt 0:03:18]} e5 {[%emt 0:06:32]} 8. d5 {[%emt 0:04:21]} O-O-O {[%emt 0:02:15]} 9. h3 {[%emt 0:03:12]} Be6 {[%emt 0:07:26]} 10. Bd2 {[%emt 0:05:02]} Qc5 {[%emt 0:07:44]} 11. dxc6 {[%emt 0:07:31]} Bxc4 {[%emt 0:02:59]} 12. cxb7+ {[%emt 0:01:33]} Kxb7 {[%emt 0:01:17]} 13. b3 {[%emt 0:06:19]} Ba6 {[%emt 0:06:19]} 14. b4 {[%emt 0:01:47]} Qxc3 {[%emt 0:22:22]} 15. Bxc3 {[%emt 0:00:19]} Rxd1+ {[%emt 0:00:27]} 16. Rxd1 {[%emt 0:00:31]} Ne4 {[%emt 0:01:56]} 17. Bd2 {[%emt 0:05:09]} Nxd2 {[%emt 0:01:15]} 18. Nxd2 {[%emt 0:00:12]} Kc8 {[%emt 0:02:06]} 19. a3 {[%emt 0:00:35]} c5 {[%emt 0:03:03]} 20. c3 {[%emt 0:00:40]} cxb4 {[%emt 0:01:34]} 21. cxb4 {[%emt 0:04:43]} Be7 {[%emt 0:02:32]} 22. Rc1+ {[%emt 0:00:50]} Kd7 {[%emt 0:00:49]} 23. Nb3 {[%emt 0:00:49]} Kd6 {[%emt 0:02:36]} 24. Nc5 {[%emt 0:00:45]} Bc8 {[%emt 0:01:23]} 25. Ke2 {[%emt 0:00:23]} Bg5 {[%emt 0:01:26]} 26. Ne4+ {[%emt 0:00:28]} Ke6 {[%emt 0:01:00]} 27. Nxg5+ {[%emt 0:00:08]} Kf6 {[%emt 0:01:00]} 28. Ne4+ {[%emt 0:00:24]} Kg6 {[%emt 0:00:41]} 29. Rc6+ {[%emt 0:00:18]} f6 {[%emt 0:01:11]} 30. Nc5 {[%emt 0:01:07]} Re8 {[%emt 0:04:00]} 31. Rd1 {[%emt 0:00:19]} h5 {[%emt 0:00:48]} 32. a4 {[%emt 0:00:14]} Bf5 {[%emt 0:00:48]} 33. Rc7 {[%emt 0:01:00]} Ra8 {[%emt 0:00:38]} 34. b5 {[%emt 0:00:15]} Kh6 {[%emt 0:00:30]} 35. a5 {[%emt 0:00:31]} g5 {[%emt 0:01:11]} 36. Rd6 {[%emt 0:00:30]} Kg6 {[%emt 0:00:32]} 37. Rcc6 {[%emt 0:00:14]} Rf8 {[%emt 0:00:57]} 38. Nd7 {[%emt 0:00:44]} g4 {[%emt 0:01:48]} 39. Nxf8+ {[%emt 0:00:09]} 1-0

[Event "FRA-ch Youth U12W 2019"]
[Site "Hyeres"]
[Date "2019.04.19"]
[Round "7.4"]
[White "Deladerriere, Calypso"]
[Black "Lazes, Alexia"]
[Result "0-1"]
[ECO "C11"]
[WhiteElo "1443"]
[BlackElo "1491"]
[Annotator "NA"]
[PlyCount "107"]
[EventDate "2019.04.14"]
[EventType "swiss"]
[EventCountry "FRA"]
[SourceTitle "playchess.com"]
[Source "ChessBase"]
[SourceQuality "1"]
[TimeControl "5400+30"]

1. e4 {[%emt 0:00:00]} e6 {[%emt 0:00:00]} 2. Nc3 {[%emt 0:00:04]} d5 {[%emt 0:00:59]} 3. Nf3 {[%emt 0:00:27]} Nf6 {[%emt 0:02:08]} 4. e5 {[%emt 0:01:22]} Nfd7 {[%emt 0:00:15]} 5. d4 {[%emt 0:00:58]} c5 {[%emt 0:00:30]} 6. dxc5 {[%emt 0:00:44]} Bxc5 {[%emt 0:02:32]} 7. Bd3 {[%emt 0:00:49]} b6 {[%emt 0:03:47]} 8. Bf4 {[%emt 0:03:06]} Ba6 {[%emt 0:02:24]} 9. Nb5 {[%emt 0:15:34]} Qc8 {[%emt 0:09:16]} 10. O-O {[%emt 0:09:24]} Nc6 {[%emt 0:06:19]} 11. Qe2 {[%emt 0:00:52]} Bxb5 {[%emt 0:01:59]} 12. Bxb5 {[%emt 0:02:40]} Qc7 {[%emt 0:02:22]} 13. c3 {[%emt 1:00:30]} O-O {[%emt 0:06:20]} 14. Bg3 {[%emt 0:00:00]} a5 {[%emt 0:04:22]} 15. Rac1 {[%emt 0:00:00]} Rab8 {[%emt 0:06:39]} 16. Rfe1 {[%emt 0:00:00]} Na7 {[%emt 0:05:43]} 17. Bd3 {[%emt 0:00:00]} Be7 {[%emt 0:06:35]} 18. c4 {[%emt 0:00:00]} Rbc8 {[%emt 0:04:35]} 19. Bf4 {[%emt 0:00:00]} Nc5 {[%emt 0:03:21]} 20. cxd5 {[%emt 0:00:00]} exd5 {[%emt 0:02:25]} 21. Bf5 {[%emt 0:00:00]} Rcd8 {[%emt 0:02:33]} 22. Qc2 {[%emt 0:00:00]} g6 {[%emt 0:02:26]} 23. Bd3 {[%emt 0:00:00]} Rc8 {[%emt 0:01:34]} 24. Qd2 {[%emt 0:00:00]} Qd7 {[%emt 0:02:00]} 25. Bc4 {[%emt 0:00:00]} dxc4 {[%emt 0:03:47]} 26. Qxd7 {[%emt 0:00:00]} Nxd7 {[%emt 0:00:05]} 27. Red1 {[%emt 0:00:00]} Nc5 {[%emt 0:01:48]} 28. Rxc4 {[%emt 0:00:00]} Rfd8 {[%emt 0:00:30]} 29. Rf1 {[%emt 0:00:00]} Nd3 {[%emt 0:02:05]} 30. Rxc8 {[%emt 0:00:00]} Rxc8 {[%emt 0:00:06]} 31. Be3 {[%emt 0:00:00]} Bc5 {[%emt 0:00:46]} 32. Bxc5 {[%emt 0:00:00]} Rxc5 {[%emt 0:00:32]} 33. Ne1 {[%emt 0:00:00]} Nxe5 {[%emt 0:00:47]} 34. f4 {[%emt 0:00:00]} Nc4 {[%emt 0:00:49]} 35. b3 {[%emt 0:00:00]} Nd6 {[%emt 0:00:25]} 36. Nf3 {[%emt 0:00:00]} Ne4 {[%emt 0:02:06]} 37. Re1 {[%emt 0:00:00]} f5 {[%emt 0:01:47]} 38. Rd1 {[%emt 0:00:00]} Nc6 {[%emt 0:00:29]} 39. Ne1 {[%emt 0:00:32]} Nc3 {[%emt 0:01:23]} 40. Rd2 {[%emt 0:00:05]} Ne4 {[%emt 0:01:49]} 41. Rd1 {[%emt 0:00:04]} Kg7 {[%emt 0:01:02]} 42. Kf1 {[%emt 0:00:10]} Kf6 {[%emt 0:00:32]} 43. g3 {[%emt 0:00:57]} Ne7 {[%emt 0:00:48]} 44. Kg2 {[%emt 0:04:46]} Rd5 {[%emt 0:00:47]} 45. Rc1 {[%emt 0:00:10]} Rd2+ {[%emt 0:00:28]} 46. Kf3 {[%emt 0:01:32]} Rf2+ {[%emt 0:01:25]} 47. Ke3 {[%emt 0:00:12]} Nd5+ {[%emt 0:00:26]} 48. Kd4 {[%emt 0:00:52]} Ndc3 {[%emt 0:01:10]} 49. Rxc3 {[%emt 0:01:11]} Nxc3 {[%emt 0:00:03]} 50. Kxc3 {[%emt 0:07:59]} Rxh2 {[%emt 0:00:53]} 51. a4 {[%emt 0:00:00]} Rh3 {[%emt 0:00:44]} 52. Kc4 {[%emt 0:00:00]} Rxg3 {[%emt 0:00:25]} 53. Nd3 {[%emt 0:00:00]} Rxd3 {[%emt 0:00:22]} 54. Kxd3 {[%emt 0:00:00] Ke5 [%clk 0:00:00] Kd4+} 0-1

[Event "FRA-ch Youth U12W 2019"]
[Site "Hyeres"]
[Date "2019.04.20"]
[Round "8.1"]
[White "Gagua, Nani"]
[Black "Micheli, Elora"]
[Result "0-1"]
[ECO "B40"]
[WhiteElo "1458"]
[BlackElo "1359"]
[Annotator "NA"]
[PlyCount "92"]
[EventDate "2019.04.14"]
[EventType "swiss"]
[EventCountry "FRA"]
[SourceTitle "playchess.com"]
[Source "ChessBase"]
[SourceQuality "1"]
[TimeControl "5400+30"]

1. e4 {[%emt 0:00:00]} c5 {[%emt 0:00:32]} 2. Nf3 {[%emt 0:00:00]} e6 {[%emt 0:01:01]} 3. Be2 {[%emt 0:00:01]} Nc6 {[%emt 0:01:26]} 4. O-O {[%emt 0:00:28]} d6 {[%emt 0:02:09]} 5. c3 {[%emt 0:02:22]} Nf6 {[%emt 0:01:22]} 6. Qc2 {[%emt 0:02:25]} Be7 {[%emt 0:07:59]} 7. d4 {[%emt 0:00:58]} b6 {[%emt 0:01:10]} 8. Bf4 {[%emt 0:06:42]} d5 {[%emt 0:02:07]} 9. e5 {[%emt 0:01:56]} Ne4 {[%emt 0:05:00]} 10. Nbd2 {[%emt 0:00:59]} Nxd2 {[%emt 0:01:04]} 11. Qxd2 {[%emt 0:00:23]} a5 {[%emt 0:02:39]} 12. Rfe1 {[%emt 0:05:19]} cxd4 {[%emt 0:01:17]} 13. Nxd4 {[%emt 0:01:08]} Nxd4 {[%emt 0:03:35]} 14. Qxd4 {[%emt 0:00:10]} Bc5 {[%emt 0:00:52]} 15. Qd1 {[%emt 0:03:39]} Ba6 {[%emt 0:02:24]} 16. Bxa6 {[%emt 0:01:50]} Rxa6 {[%emt 0:00:21]} 17. Qg4 {[%emt 0:00:22]} g6 {[%emt 0:00:56]} 18. Bh6 {[%emt 0:02:12]} Ra7 {[%emt 0:06:27]} 19. Qh3 {[%emt 0:02:15]} Bf8 {[%emt 0:01:25]} 20. Bxf8 {[%emt 0:02:39]} Kxf8 {[%emt 0:03:41]} 21. Rad1 {[%emt 0:00:28]} Qg5 {[%emt 0:02:08]} 22. Rd4 {[%emt 0:02:25]} h5 {[%emt 0:01:12]} 23. Qf3 {[%emt 0:01:00]} Kg7 {[%emt 0:01:42]} 24. Rf4 {[%emt 0:00:49]} Rc8 {[%emt 0:02:07]} 25. h4 {[%emt 0:03:17]} Qe7 {[%emt 0:01:20]} 26. Rf6 {[%emt 0:01:06]} Rc4 {[%emt 0:04:35]} 27. Qh3 {[%emt 0:04:43]} Rac7 {[%emt 0:02:36]} 28. Re3 {[%emt 0:01:38]} d4 {[%emt 0:01:13]} 29. Ref3 {[%emt 0:14:13]} Qc5 {[%emt 0:01:42]} 30. R3f4 {[%emt 0:09:57]} dxc3 {[%emt 0:01:26]} 31. Rxc4 {[%emt 0:01:07]} Qxc4 {[%emt 0:00:34]} 32. Qxc3 {[%emt 0:00:24]} Qxc3 {[%emt 0:00:13]} 33. bxc3 {[%emt 0:00:12]} Rxc3 {[%emt 0:00:35]} 34. Rf3 {[%emt 0:00:27]} Rxf3 {[%emt 0:00:28]} 35. gxf3 {[%emt 0:00:06]} f6 {[%emt 0:00:43]} 36. f4 {[%emt 0:00:10]} fxe5 {[%emt 0:00:14]} 37. fxe5 {[%emt 0:00:14]} b5 {[%emt 0:00:29]} 38. Kf1 {[%emt 0:00:35]} g5 {[%emt 0:01:04]} 39. hxg5 {[%emt 0:01:12]} Kg6 {[%emt 0:00:13]} 40. f4 {[%emt 0:00:06]} b4 {[%emt 0:00:06]} 41. Ke2 {[%emt 0:01:43]} a4 {[%emt 0:00:26]} 42. Kd3 {[%emt 0:00:21]} Kf5 {[%emt 0:00:38]} 43. Kd2 {[%emt 0:00:13]} b3 {[%emt 0:00:13]} 44. axb3 {[%emt 0:00:09]} axb3 {[%emt 0:00:15]} 45. Kc3 {[%emt 0:00:06]} h4 {[%emt 0:00:11]} 46. Kxb3 {[%emt 0:00:05]} h3 {[%emt 0:00:04]} 0-1

[Event "FRA-ch Youth U12W 2019"]
[Site "Hyeres"]
[Date "2019.04.20"]
[Round "8.2"]
[White "Bellahcene, Jenna"]
[Black "Schippke, Manon"]
[Result "0-1"]
[ECO "B22"]
[WhiteElo "1305"]
[BlackElo "1646"]
[Annotator "NA"]
[PlyCount "79"]
[EventDate "2019.04.14"]
[EventType "swiss"]
[EventCountry "FRA"]
[SourceTitle "playchess.com"]
[Source "ChessBase"]
[SourceQuality "1"]
[TimeControl "5400+30"]

1. e4 {[%emt 0:00:00]} c5 {[%emt 0:00:00]} 2. c3 {[%emt 0:00:00]} Nf6 {[%emt 0:00:03]} 3. e5 {[%emt 0:00:00]} Nd5 {[%emt 0:00:24]} 4. d4 {[%emt 0:00:12]} cxd4 {[%emt 0:00:32]} 5. Nf3 {[%emt 0:00:14]} e6 {[%emt 0:00:33]} 6. cxd4 {[%emt 0:00:24]} d6 {[%emt 0:01:01]} 7. Bc4 {[%emt 0:00:49]} Nc6 {[%emt 0:00:54]} 8. O-O {[%emt 0:01:32]} Be7 {[%emt 0:01:40]} 9. Qe2 {[%emt 0:01:09]} O-O {[%emt 0:01:37]} 10. Rd1 {[%emt 0:00:44]} Na5 {[%emt 0:01:47]} 11. Bxd5 {[%emt 1:30:26]} exd5 {[%emt 0:00:30]} 12. Nc3 {[%emt 0:00:00]} Be6 {[%emt 0:01:44]} 13. Bf4 {[%emt 0:00:00]} a6 {[%emt 0:04:47]} 14. Rac1 {[%emt 0:00:00]} b5 {[%emt 0:12:15]} 15. b3 {[%emt 0:00:00]} Rc8 {[%emt 0:04:02]} 16. h3 {[%emt 0:00:00]} Nc6 {[%emt 0:04:39]} 17. Qe3 {[%emt 0:00:00]} b4 {[%emt 0:06:11]} 18. Ne2 {[%emt 0:00:00]} Bf5 {[%emt 0:00:39]} 19. Ng3 {[%emt 0:00:00]} Bg6 {[%emt 0:07:22]} 20. e6 {[%emt 0:00:00]} f6 {[%emt 0:00:47]} 21. Nh4 {[%emt 0:00:00]} Be8 {[%emt 0:01:21]} 22. Nhf5 {[%emt 0:00:00]} g5 {[%emt 0:00:44]} 23. Nxe7+ {[%emt 0:00:00]} Nxe7 {[%emt 0:00:48]} 24. Bxg5 {[%emt 0:00:00]} fxg5 {[%emt 0:00:35]} 25. Qxg5+ {[%emt 0:00:00]} Bg6 {[%emt 0:00:44]} 26. Rxc8 {[%emt 0:00:00]} Nxc8 {[%emt 0:00:56]} 27. Qxd5 {[%emt 0:00:00]} Ne7 {[%emt 0:04:23]} 28. Qc4 {[%emt 0:00:00]} Qa5 {[%emt 0:00:54]} 29. Qe2 {[%emt 0:00:00]} d5 {[%emt 0:02:06]} 30. Rc1 {[%emt 0:00:00]} Qb6 {[%emt 0:03:14]} 31. Qe5 {[%emt 0:00:00]} Rc8 {[%emt 0:14:15]} 32. Rxc8+ {[%emt 0:00:00]} Nxc8 {[%emt 0:00:09]} 33. Qxd5 {[%emt 0:00:00]} Qd6 {[%emt 0:00:16]} 34. Qc4 {[%emt 0:00:00]} Ne7 {[%emt 0:00:57]} 35. Ne2 {[%emt 0:00:00]} Bf5 {[%emt 0:00:53]} 36. Qc1 {[%emt 0:00:00]} Qxe6 {[%emt 0:00:50]} 37. Qg5+ {[%emt 0:00:00]} Bg6 {[%emt 0:00:55]} 38. Qd2 {[%emt 0:00:00]} Qd6 {[%emt 0:03:10]} 39. Nf4 {[%emt 0:00:00]} Nc6 {[%emt 0:01:07]} 40. Ne2 {[%emt 0:00:00]} 0-1

[Event "FRA-ch Youth U12W 2019"]
[Site "Hyeres"]
[Date "2019.04.20"]
[Round "8.3"]
[White "Lazes, Alexia"]
[Black "Berezovsky, Fiorina"]
[Result "0-1"]
[ECO "B43"]
[WhiteElo "1491"]
[BlackElo "1604"]
[Annotator "NA"]
[PlyCount "78"]
[EventDate "2019.04.14"]
[EventType "swiss"]
[EventCountry "FRA"]
[SourceTitle "playchess.com"]
[Source "ChessBase"]
[SourceQuality "1"]
[TimeControl "5400+30"]

1. e4 {[%emt 0:00:00]} c5 {[%emt 0:00:00]} 2. Nf3 {[%emt 0:00:00]} e6 {[%emt 0:00:08]} 3. d4 {[%emt 0:00:00]} cxd4 {[%emt 0:00:33]} 4. Nxd4 {[%emt 0:00:03]} a6 {[%emt 0:00:29]} 5. Nc3 {[%emt 0:01:56]} Qc7 {[%emt 0:01:02]} 6. Bd2 {[%emt 0:06:02]} Bc5 {[%emt 0:04:29]} 7. Nf3 {[%emt 0:03:40]} d6 {[%emt 0:03:01]} 8. Bd3 {[%emt 0:04:13]} Nf6 {[%emt 0:03:22]} 9. Bf4 {[%emt 0:09:43]} Nbd7 {[%emt 0:06:12]} 10. O-O {[%emt 0:02:58]} b5 {[%emt 0:06:19]} 11. Re1 {[%emt 0:03:56]} Qb6 {[%emt 0:07:49]} 12. Qd2 {[%emt 0:07:33]} h6 {[%emt 0:16:48]} 13. Be3 {[%emt 0:09:35]} Bb7 {[%emt 0:03:59]} 14. a4 {[%emt 0:05:14]} b4 {[%emt 0:03:08]} 15. Na2 {[%emt 0:12:57]} g5 {[%emt 0:08:05]} 16. Bxc5 {[%emt 0:04:00]} dxc5 {[%emt 0:02:08]} 17. Rad1 {[%emt 0:03:03]} Rc8 {[%emt 0:01:31]} 18. Bc4 {[%emt 0:03:35]} Qc7 {[%emt 0:02:49]} 19. e5 {[%emt 0:03:28]} Bxf3 {[%emt 0:03:42]} 20. gxf3 {[%emt 0:01:07]} Nxe5 {[%emt 0:01:05]} 21. Be2 {[%emt 0:04:09]} Rg8 {[%emt 0:05:05]} 22. Qd6 {[%emt 0:01:58]} Qxd6 {[%emt 0:01:07]} 23. Rxd6 {[%emt 0:00:03]} Ke7 {[%emt 0:07:31]} 24. Red1 {[%emt 0:01:46]} Nd5 {[%emt 0:00:28]} 25. Rxa6 {[%emt 0:00:56]} Nf4 {[%emt 0:00:52]} 26. Ra7+ {[%emt 0:00:55]} Kf6 {[%emt 0:11:18]} 27. Kf1 {[%emt 0:00:38]} Rgd8 {[%emt 0:00:00]} 28. Rxd8 {[%emt 0:01:07]} Rxd8 {[%emt 0:00:00]} 29. Ke1 {[%emt 0:00:20]} Ng2+ {[%emt 0:00:00]} 30. Kf1 {[%emt 0:00:14]} Rd2 {[%emt 0:00:00]} 31. Kxg2 {[%emt 0:00:11]} Rxe2 {[%emt 0:00:00]} 32. Nc1 {[%emt 0:09:05]} Rxc2 {[%emt 0:00:00]} 33. Nb3 {[%emt 0:01:01]} c4 {[%emt 0:00:00]} 34. Nc5 {[%emt 0:00:11]} Rxb2 {[%emt 0:00:00]} 35. a5 {[%emt 0:00:24]} c3 {[%emt 0:00:00]} 36. a6 {[%emt 0:00:27]} c2 {[%emt 0:00:00]} 37. Nb3 {[%emt 0:00:16]} Rxb3 {[%emt 0:00:00]} 38. Rc7 {[%emt 0:00:08]} Ra3 {[%emt 0:00:00]} 39. a7 {[%emt 0:00:37]} Rxa7 {[%emt 0:06:30]} 0-1